bitfinex/quotes_SOLUSD_20250617
["timestamp","ask_amount","ask_price","bid_price","bid_amount"]
[1750170686083,17.25732513,150.59,150.55,6.64231152]
[1750170686376,16.07048622,150.59,150.55,17.76273665]
[1750170686672,55.77007399,150.6,150.55,17.76273665]
[1750170686848,4.95359247,150.59,150.55,17.76273665]
[1750170687182,11.12042513,150.58,150.55,6.64231152]
[1750170688471,11.12042513,150.57,150.54,6.64255962]
[1750170688850,7.41618777,150.57,150.54,6.64255962]
[1750170689052,7.41618777,150.58,150.54,6.64255962]
[1750170689255,12.36999233,150.58,150.54,6.64255962]
[1750170689768,12.36995727,150.58,150.54,6.64255962]
[1750170689951,7.41618777,150.58,150.54,6.64255962]
[1750170690154,7.41618777,150.58,150.5,23.39797552]
[1750170690674,12.37001463,150.58,150.5,23.39797552]
[1750170691148,7.41618777,150.57,150.5,23.39797552]
[1750170691473,34.3405889,150.59,150.5,23.39797552]
[1750170691672,7.41618777,150.53,150.48,6.64540138]
[1750170691851,7.41618777,150.51,150.48,6.64540138]
[1750170692052,7.41618777,150.52,150.48,6.64540138]
[1750170692588,7.41618777,150.49,150.43,6.64761018]
[1750170692759,7.41618777,150.47,150.43,6.64761018]
[1750170693079,7.41618777,150.47,150.43,14.06379795]
[1750170693584,7.41618777,150.45,150.41,6.64811861]
[1750170693955,7.41618777,150.45,150.41,14.06430638]
[1750170694281,7.41618777,150.5,150.45,6.64672648]
[1750170694461,7.41618777,150.5,150.46,7.41618777]
[1750170694659,7.41618777,150.5,150.45,14.06291425]
[1750170694969,11.13554721,150.49,150.45,17.78227369]
[1750170695351,12.80380262,150.52,150.45,17.78227369]
[1750170695674,16.09312964,150.5,150.46,11.13554721]
[1750170695875,64.81554721,150.51,150.46,11.13554721]
[1750170696178,26.0,150.51,150.46,11.13554721]
[1750170696373,26.0,150.51,150.47,6.64584302]
[1750170696374,11.13554721,150.51,150.47,6.64584302]
[1750170696550,16.09073431,150.51,150.47,17.78139023]
[1750170696750,6.16,150.52,150.47,6.64584302]
[1750170696953,11.13554721,150.5,150.47,6.64584302]
[1750170697147,16.09076384,150.5,150.47,6.64584302]
[1750170697377,16.09076384,150.51,150.47,6.64584302]
[1750170697581,11.13554721,150.51,150.47,6.64584302]
[1750170697889,16.09156005,150.51,150.47,6.64584302]
[1750170698070,11.13554721,150.51,150.47,6.64584302]
[1750170698261,11.13554721,150.51,150.47,11.13554721]
[1750170698581,11.13554721,150.51,150.46,11.13554721]
[1750170699480,22.25103059,150.52,150.48,11.13554721]
[1750170699657,17.29554721,150.52,150.48,11.13554721]
[1750170699854,11.13554721,150.5,150.43,27.64326157]
[1750170700164,4.95519648,150.49,150.44,6.6471683]
[1750170700467,11.13554721,150.49,150.44,17.78271551]
[1750170701063,11.13554721,150.47,150.44,6.6471683]
[1750170701486,11.13554721,150.48,150.44,17.78271551]
[1750170705682,28.04,150.5,150.44,17.78271551]
[1750170705983,11.13554721,150.48,150.44,17.78271551]
[1750170707169,11.13554721,150.48,150.44,6.6471683]
[1750170708284,11.13554721,150.47,150.44,6.6471683]
[1750170708486,28.04,150.5,150.44,17.78271551]
[1750170708487,11.13554721,150.48,150.44,17.78271551]
[1750170708791,28.04,150.5,150.45,11.13554721]
[1750170708967,11.13554721,150.49,150.45,11.13554721]
[1750170709482,11.13554721,150.49,150.44,34.40063627]
[1750170709982,11.13554721,150.48,150.44,6.6471683]
[1750170710154,11.13554721,150.47,150.44,6.6471683]
[1750170710812,11.13554721,150.47,150.42,23.26814413]
[1750170710994,11.13554721,150.46,150.42,34.40369134]
[1750170711293,11.13554721,150.44,150.39,29.33077072]
[1750170711658,11.13554721,150.44,150.39,55.33077072]
[1750170711859,11.13554721,150.44,150.4,11.13554721]
[1750170712367,11.13554721,150.44,150.4,17.78448338]
[1750170712568,11.13554721,150.45,150.4,17.78448338]
[1750170712878,11.13554721,150.44,150.4,17.78448338]
[1750170713188,18.64964886,150.48,150.41,11.13554721]
[1750170713399,11.13554721,150.47,150.43,11.13554721]
[1750170713599,1.6508,150.49,150.43,11.13554721]
[1750170713900,11.13554721,150.48,150.44,11.13554721]
[1750170714259,18.933972,150.5,150.44,11.13554721]
[1750170714481,11.13554721,150.49,150.45,6.64672648]
[1750170714790,11.13554721,150.48,150.45,6.64672648]
[1750170714970,11.13554721,150.49,150.45,17.78227369]
[1750170715177,11.13554721,150.5,150.46,11.13554721]
[1750170715384,11.13554721,150.49,150.45,17.78227369]
[1750170715786,17.05930825,150.53,150.45,43.78227369]
[1750170716083,11.13554721,150.52,150.48,11.13554721]
[1750170716494,11.13554721,150.49,150.4,23.27127659]
[1750170716665,33.164896,150.49,150.42,11.13554721]
[1750170716859,33.164896,150.49,150.4,23.27127659]
[1750170716860,28.22,150.49,150.43,7.42539388]
[1750170717064,7.42539388,150.48,150.43,7.42539388]
[1750170717584,35.64539388,150.49,150.44,14.0721473]
[1750170718000,35.64539388,150.49,150.44,6.64675342]
[1750170718300,7.42539388,150.48,150.44,14.0721473]
[1750170718500,7.42539388,150.47,150.44,6.64675342]
[1750170719095,7.42539388,150.48,150.44,6.64675342]
[1750170719976,7.42539388,150.47,150.44,6.64675342]
[1750170720782,7.42539388,150.46,150.41,23.2697294]
[1750170721096,7.42539388,150.46,150.42,7.42539388]
[1750170721395,7.42539388,150.44,150.41,6.64849411]
[1750170721618,7.42539388,150.42,150.36,6.65070497]
[1750170721798,7.42539388,150.43,150.38,7.42539388]
[1750170722473,7.42539388,150.43,150.39,7.42539388]
[1750170722673,7.42539388,150.44,150.39,7.42539388]
[1750170722876,7.42539388,150.44,150.4,6.64893617]
[1750170723082,54.31504274,150.45,150.41,7.42539388]
[1750170723482,7.42539388,150.44,150.4,6.64893617]
[1750170723801,7.42539388,150.44,150.4,14.07433005]
[1750170724007,46.88964886,150.45,150.37,6.64996887]
[1750170724008,79.53657371,150.45,150.37,6.64996887]
[1750170724215,7.42539388,150.4,150.37,6.64996887]
[1750170724502,7.42539388,150.41,150.37,6.64996887]
[1750170724696,7.42539388,150.39,150.36,6.65058371]
[1750170724899,7.42539388,150.38,150.35,6.65109379]
[1750170725281,7.42539388,150.37,150.33,6.65203219]
[1750170725712,7.42539388,150.37,150.33,14.07742607]
[1750170726007,11.30467735,150.4,150.33,6.65203219]
[1750170726214,7.42539388,150.37,150.33,6.65203219]
[1750170726420,7.42539388,150.38,150.34,7.42539388]
[1750170726914,7.42539388,150.39,150.35,6.65114732]
[1750170727120,13.78539388,150.4,150.35,14.0765412]
[1750170727413,6.36,150.4,150.36,7.42539388]
[1750170727614,13.78539388,150.4,150.35,14.0765412]
[1750170728202,6.36,150.4,150.35,14.0765412]
[1750170728399,13.78539388,150.4,150.35,14.0765412]
[1750170729510,6.36,150.4,150.37,6.65026268]
[1750170729713,6.36,150.4,150.37,14.07565656]
[1750170729913,28.38,150.44,150.38,7.42539388]
[1750170730121,7.42539388,150.43,150.38,7.42539388]
[1750170731009,7.42539388,150.42,150.38,14.07485223]
[1750170731220,7.42539388,150.42,150.38,6.64945835]
[1750170731407,7.42539388,150.41,150.38,6.64945835]
[1750170731923,7.42539388,150.4,150.38,6.64945835]
[1750170732103,7.42539388,150.4,150.37,6.65011756]
[1750170732301,9.87798548,150.43,150.35,6.65114732]
[1750170732302,7.42539388,150.38,150.35,6.65114732]
[1750170732708,7.42539388,150.37,150.33,14.07742607]
[1750170733028,7.42539388,150.34,150.3,14.07875382]
[1750170733226,35.82539388,150.36,150.31,7.42539388]
[1750170733404,28.4,150.36,150.33,7.42539388]
[1750170733727,28.4,150.36,150.3,23.2867598]
[1750170733728,28.4,150.36,150.32,7.42539388]
[1750170734036,6.36,150.37,150.33,7.42539388]
[1750170735607,7.42539388,150.38,150.34,14.07677288]
[1750170736012,13.98539388,150.39,150.35,7.42539388]
[1750170736333,7.42539388,150.4,150.36,7.42539388]
[1750170736513,7.42539388,150.4,150.35,7.42539388]
[1750170736723,7.42539388,150.4,150.36,7.42539388]
[1750170737125,34.92,150.41,150.37,6.65026268]
[1750170737309,7.42539388,150.4,150.36,14.07594405]
[1750170738236,13.98539388,150.43,150.38,7.42539388]
[1750170738541,42.34539388,150.43,150.38,7.42539388]
[1750170738932,34.92,150.43,150.38,7.42539388]
[1750170739142,6.56,150.43,150.4,6.64893617]
[1750170739307,13.98539388,150.43,150.4,6.64893617]
[1750170740438,7.42539388,150.41,150.37,6.65026268]
[1750170740831,7.42539388,150.38,150.32,14.0778686]
[1750170741029,7.42539388,150.37,150.32,14.0778686]
[1750170741252,7.42539388,150.37,150.33,7.42539388]
[1750170741415,7.42539388,150.37,150.32,14.0778686]
[1750170742129,7.42539388,150.37,150.33,7.42539388]
[1750170742332,28.62432314,150.4,150.34,7.42539388]
[1750170742537,7.42539388,150.39,150.35,7.42539388]
[1750170742919,7.42539388,150.39,150.34,11.15065976]
[1750170742920,11.15065976,150.39,150.34,11.15065976]
[1750170743223,11.15065976,150.39,150.35,6.65114732]
[1750170743445,11.15065976,150.4,150.36,11.15065976]
[1750170743637,58.12030862,150.41,150.36,11.15065976]
[1750170743820,39.47065976,150.41,150.37,11.15065976]
[1750170744035,34.74415114,150.42,150.38,11.15065976]
[1750170744220,29.80030862,150.42,150.37,11.15065976]
[1750170744419,11.15065976,150.41,150.37,11.15065976]
[1750170744937,35.14432314,150.43,150.35,49.27901562]
[1750170745123,11.15065976,150.42,150.38,11.15065976]
[1750170745325,11.15065976,150.42,150.35,49.27901562]
[1750170745527,11.15065976,150.42,150.37,11.15065976]
[1750170745729,11.15065976,150.41,150.37,11.15065976]
[1750170747248,11.15065976,150.41,150.38,6.64982045]
[1750170747430,11.15065976,150.39,150.32,23.2826094]
[1750170747630,11.15065976,150.39,150.34,11.15065976]
[1750170747956,11.15065976,150.37,150.33,11.15065976]
[1750170748251,18.64964886,150.4,150.34,11.15065976]
[1750170748424,11.15065976,150.39,150.35,11.15065976]
[1750170748934,11.15065976,150.39,150.36,6.65070497]
[1750170751034,11.15065976,150.39,150.35,11.15065976]
[1750170753051,11.15065976,150.39,150.36,6.65070497]
[1750170753731,11.15065976,150.4,150.36,6.65070497]
[1750170754456,11.15065976,150.39,150.36,6.65070497]
[1750170755337,11.15065976,150.39,150.35,6.65114732]
[1750170755525,11.15065976,150.39,150.35,17.80180708]
[1750170757856,11.15065976,150.39,150.35,6.65114732]
[1750170758055,53.84247662,150.41,150.35,6.65114732]
[1750170758254,11.15065976,150.39,150.35,6.65114732]
[1750170758937,11.15065976,150.39,150.35,17.80180708]
[1750170759438,53.84247662,150.41,150.35,17.80180708]
[1750170759652,11.15065976,150.39,150.33,23.28211267]
[1750170759859,53.84247662,150.41,150.35,11.15065976]
[1750170760043,11.15065976,150.39,150.35,11.15065976]
[1750170761561,23.7396178,150.39,150.35,11.15065976]
[1750170761763,23.7396178,150.39,150.36,6.65070497]
[1750170761962,12.58895804,150.39,150.36,6.65070497]
[1750170762158,23.7396178,150.39,150.36,6.65070497]
[1750170762663,12.58895804,150.39,150.37,11.15065976]
[1750170762863,12.58895804,150.39,150.38,7.42951099]
[1750170763937,12.58895804,150.39,150.38,15.70823144]
[1750170764851,12.58895804,150.39,150.38,8.42088202]
[1750170765052,12.58895804,150.39,150.38,15.85039301]
[1750170765358,12.58895804,150.39,150.38,15.70823144]
[1750170766353,12.58895804,150.39,150.38,6.64982045]
[1750170769379,12.58895804,150.39,150.38,14.07933144]
[1750170771775,12.58895804,150.39,150.38,6.64982045]
[1750170772776,12.58895804,150.39,150.36,6.65070497]
[1750170772954,12.58895804,150.39,150.36,14.08021596]
[1750170774756,12.58895804,150.39,150.35,26.0]
[1750170774757,12.58895804,150.39,150.38,6.64982045]
[1750170774960,12.58895804,150.39,150.38,14.07933144]
[1750170775155,12.58895804,150.39,150.38,6.64982045]
[1750170778171,12.58895804,150.39,150.38,14.07933144]
[1750170778670,12.58895804,150.39,150.38,6.64982045]
[1750170778871,12.58895804,150.39,150.38,14.07933144]
[1750170779074,12.58895804,150.39,150.38,6.64982045]
[1750170779290,12.58895804,150.39,150.37,6.65016763]
[1750170779592,20.01846903,150.39,150.37,6.65016763]
[1750170779771,12.58895804,150.39,150.37,6.65016763]
[1750170783572,12.58895804,150.39,150.35,6.65114732]
[1750170783797,4.97427597,150.38,150.35,14.08065831]
[1750170783995,12.58895804,150.39,150.35,6.65114732]
[1750170784179,12.40317611,150.38,150.35,6.65114732]
[1750170784384,7.42951099,150.38,150.35,6.65114732]
[1750170784590,7.42951099,150.37,150.35,6.65114732]
[1750170784896,7.42951099,150.37,150.34,6.65150668]
[1750170785697,7.42951099,150.36,150.33,6.65186536]
[1750170786701,7.42951099,150.37,150.33,14.08137635]
[1750170786899,7.42951099,150.38,150.33,14.08137635]
[1750170787195,4.97187601,150.37,150.33,14.08137635]
[1750170787398,7.42951099,150.38,150.33,14.08137635]
[1750170787698,4.96836208,150.37,150.33,14.08137635]
[1750170787901,7.42951099,150.38,150.33,14.08137635]
[1750170788196,4.96835319,150.37,150.33,14.08137635]
[1750170788375,7.42951099,150.38,150.33,14.08137635]
[1750170788674,4.96835385,150.37,150.33,14.08137635]
[1750170788873,7.42951099,150.38,150.33,14.08137635]
[1750170789090,7.42951099,150.38,150.34,7.42951099]
[1750170789298,12.58895804,150.39,150.37,7.42951099]
[1750170790181,12.58895804,150.39,150.38,7.42951099]
[1750170790588,12.58895804,150.39,150.38,14.07933144]
[1750170790784,12.58895804,150.39,150.38,14.22149301]
[1750170793386,12.58895804,150.39,150.38,33.15546501]
[1750170795096,12.58895804,150.39,150.38,14.22149301]
[1750170795300,12.58895804,150.39,150.38,40.22149301]
[1750170797103,12.58895804,150.39,150.38,40.07933144]
[1750170801021,12.58895804,150.39,150.38,32.64982045]
[1750170801212,12.58895804,150.39,150.38,40.07933144]
[1750170803809,12.58895804,150.39,150.38,32.64982045]
[1750170804014,12.58895804,150.39,150.38,40.07933144]
[1750170804989,12.58895804,150.39,150.38,32.64982045]
[1750170805189,12.58895804,150.39,150.38,40.07933144]
[1750170806621,12.58895804,150.39,150.38,32.64982045]
[1750170806814,12.58895804,150.39,150.38,40.07933144]
[1750170807800,12.58895804,150.39,150.38,6.64982045]
[1750170808003,12.58895804,150.39,150.38,14.07933144]
[1750170809328,12.58895804,150.39,150.36,26.0]
[1750170809493,12.58895804,150.39,150.37,6.65009872]
[1750170809697,20.01846903,150.39,150.36,6.65062546]
[1750170810218,7.42951099,150.37,150.35,6.65101064]
[1750170810519,19.23834365,150.39,150.35,6.65101064]
[1750170810520,9.93327331,150.38,150.35,6.65101064]
[1750170810821,7.42951099,150.37,150.35,6.65101064]
[1750170811410,7.42951099,150.37,150.34,6.65158972]
[1750170812820,12.3936052,150.38,150.34,14.08110071]
[1750170813223,4.96409421,150.38,150.34,14.08110071]
[1750170813421,12.3936052,150.38,150.34,14.08110071]
[1750170813731,4.96398228,150.38,150.35,7.42951099]
[1750170813928,20.01846903,150.39,150.35,7.42951099]
[1750170814121,24.9835394,150.39,150.35,7.42951099]
[1750170814311,20.01846903,150.39,150.35,7.42951099]
[1750170814624,7.42951099,150.38,150.34,14.08110071]
[1750170815132,22.51633893,150.39,150.36,7.42951099]
[1750170815326,22.51633893,150.39,150.35,26.0]
[1750170815327,12.58895804,150.39,150.38,7.42951099]
[1750170815494,12.58895804,150.39,150.37,7.42951099]
[1750170815802,12.58895804,150.39,150.38,7.42951099]
[1750170817206,12.58895804,150.39,150.38,14.07933144]
[1750170821818,12.58895804,150.39,150.38,6.64982045]
[1750170822126,12.58895804,150.39,150.38,14.07933144]
[1750170825737,12.58895804,150.39,150.38,40.07933144]
[1750170826909,12.58895804,150.39,150.38,40.22149301]
[1750170827130,12.58895804,150.39,150.38,40.584976]
[1750170827337,4.96143209,150.48,150.41,26.0]
[1750170827532,4.96247358,150.47,150.44,7.42951099]
[1750170827837,4.96247358,150.46,150.44,7.42951099]
[1750170828141,15.7288364,150.47,150.43,7.42951099]
[1750170828338,20.51139278,150.46,150.44,7.42951099]
[1750170828539,15.54914157,150.46,150.44,7.42951099]
[1750170829337,15.54914157,150.46,150.45,6.64672648]
[1750170829508,20.51121064,150.46,150.45,6.64672648]
[1750170832530,15.54914157,150.46,150.45,6.64672648]
[1750170834845,22.97865256,150.46,150.42,6.64805212]
[1750170835009,7.42951099,150.43,150.42,6.64805212]
[1750170835215,7.42951099,150.43,150.37,16.62458601]
[1750170835416,7.42951099,150.41,150.38,6.64982045]
[1750170835719,7.42951099,150.4,150.38,6.64982045]
[1750170836335,4.96494486,150.42,150.38,6.64982045]
[1750170836510,7.42951099,150.41,150.38,6.64982045]
[1750170837519,7.42951099,150.4,150.38,6.64982045]
[1750170837920,9.93142156,150.42,150.38,6.64982045]
[1750170838140,7.42951099,150.4,150.38,6.64982045]
[1750170838736,7.42951099,150.4,150.37,6.65026268]
[1750170840429,7.42951099,150.41,150.37,6.65026268]
[1750170841623,7.42951099,150.4,150.37,6.65026268]
[1750170842527,7.42951099,150.41,150.37,6.65026268]
[1750170844031,4.96609721,150.42,150.39,7.42951099]
[1750170844235,6.18,150.43,150.41,14.0780051]
[1750170844429,6.18,150.43,150.41,6.64849411]
[1750170844757,13.60951099,150.43,150.41,6.64849411]
[1750170846336,45.12129966,150.42,150.37,6.65026268]
[1750170846535,7.42951099,150.39,150.37,6.65026268]
[1750170846737,7.42951099,150.38,150.34,6.65158972]
[1750170846937,7.42951099,150.37,150.34,6.65158972]
[1750170847170,7.8631,150.41,150.34,14.08110071]
[1750170847369,7.42951099,150.39,150.34,14.08110071]
[1750170847667,12.39636466,150.39,150.34,14.08110071]
[1750170848238,4.96689529,150.38,150.34,14.08110071]
[1750170848436,12.39636466,150.39,150.34,14.08110071]
[1750170848643,12.39643425,150.38,150.34,14.08110071]
[1750170848935,7.42951099,150.38,150.34,14.08110071]
[1750170850341,7.42951099,150.37,150.34,6.65158972]
[1750170851741,4.96403906,150.38,150.32,7.42951099]
[1750170851742,12.39561935,150.36,150.32,6.65247472]
[1750170852062,7.42951099,150.36,150.32,6.65247472]
[1750170852839,4.96377546,150.37,150.34,7.42951099]
[1750170853139,7.42951099,150.37,150.33,7.42951099]
[1750170854331,7.42951099,150.37,150.34,6.65158972]
[1750170854667,7.42951099,150.36,150.34,6.65158972]
[1750170855673,4.96239256,150.37,150.3,49.2867598]
[1750170855875,7.42951099,150.36,150.3,23.2867598]
[1750170856176,28.04432314,150.39,150.34,7.42951099]
[1750170856342,40.15026533,150.39,150.35,7.42951099]
[1750170856677,7.42951099,150.37,150.33,7.42951099]
[1750170857573,7.42951099,150.37,150.32,7.42951099]
[1750170857763,7.42951099,150.36,150.33,6.65203219]
[1750170858142,11.60965309,150.39,150.33,6.65203219]
[1750170858455,0.14216157,150.37,150.29,6.65380264]
[1750170858663,7.42951099,150.33,150.29,14.08331363]
[1750170858863,18.64964886,150.35,150.29,6.65380264]
[1750170858864,7.42951099,150.32,150.29,6.65380264]
[1750170859047,7.42951099,150.31,150.29,6.65380264]
[1750170859441,7.42951099,150.32,150.29,6.65380264]
[1750170860553,7.42951099,150.33,150.29,6.65380264]
[1750170861484,7.42951099,150.32,150.29,6.65380264]
[1750170862982,26.07915985,150.33,150.29,14.08331363]
[1750170863192,0.28432314,150.34,150.29,14.08331363]
[1750170863477,18.933972,150.34,150.29,14.08331363]
[1750170863657,35.5807,150.35,150.31,7.42951099]
[1750170863860,15.23021099,150.35,150.32,6.65247472]
[1750170864369,6.18,150.36,150.32,14.08198571]
[1750170864574,26.07915985,150.38,150.33,7.42951099]
[1750170864775,7.42951099,150.38,150.34,7.42951099]
[1750170865364,33.98,150.39,150.35,7.42951099]
[1750170865365,13.60951099,150.39,150.35,7.42951099]
[1750170865562,41.40951099,150.39,150.35,7.42951099]
[1750170865777,7.42951099,150.38,150.34,7.42951099]
[1750170866253,7.42951099,150.38,150.32,16.6311868]
[1750170866471,7.42951099,150.38,150.34,7.42951099]
[1750170867346,6.18,150.39,150.35,14.08065831]
[1750170867571,33.98,150.39,150.36,7.42951099]
[1750170867746,13.60951099,150.39,150.35,14.08065831]
[1750170868159,13.60951099,150.39,150.35,23.27901562]
[1750170868360,13.60951099,150.39,150.35,30.70852661]
[1750170869076,6.18,150.39,150.36,7.42951099]
[1750170869264,6.18,150.39,150.35,23.27901562]
[1750170869461,6.18,150.39,150.36,7.42951099]
[1750170869665,6.18,150.39,150.37,7.42951099]
[1750170871375,6.18,150.39,150.33,23.28211267]
[1750170871796,6.18,150.39,150.38,6.64982045]
[1750170872366,6.18,150.39,150.38,14.07933144]
[1750170872571,46.693972,150.41,150.38,14.07933144]
[1750170873097,32.18,150.42,150.39,7.42951099]
[1750170873279,6.18,150.42,150.4,7.42951099]
[1750170873802,6.18,150.42,150.38,16.62455113]
[1750170874305,6.18,150.42,150.4,7.42951099]
[1750170874877,6.18,150.42,150.41,6.64849411]
[1750170876204,6.18,150.42,150.41,14.0780051]
[1750170877169,149.1,150.45,150.41,30.69924039]
[1750170877385,15.54914157,150.46,150.44,7.42951099]
[1750170877700,58.79421062,150.45,150.41,6.64849411]
[1750170877871,7.42951099,150.44,150.41,6.64849411]
[1750170878077,12.38698119,150.44,150.41,6.64849411]
[1750170878294,7.42951099,150.44,150.41,6.64849411]
[1750170878497,12.38654153,150.44,150.41,6.64849411]
[1750170879487,7.42951099,150.44,150.41,6.64849411]
[1750170879686,4.96228702,150.43,150.41,6.64849411]
[1750170880202,7.42951099,150.44,150.41,6.64849411]
[1750170880899,4.96106605,150.44,150.41,14.0780051]
[1750170881101,27.76,150.45,150.42,7.42951099]
[1750170881282,7.42951099,150.45,150.41,14.0780051]
[1750170881484,35.18951099,150.45,150.41,14.0780051]
[1750170883101,35.18951099,150.45,150.38,23.27437158]
[1750170883308,7.42951099,150.44,150.4,7.42951099]
[1750170883604,7.42951099,150.41,150.38,6.64982045]
[1750170883802,7.42951099,150.4,150.37,6.65007479]
[1750170886480,31.32353107,150.41,150.37,6.65007479]
[1750170886787,26.36348299,150.41,150.37,6.65007479]
[1750170887882,7.42951099,150.4,150.37,6.65007479]
[1750170888406,12.38954317,150.39,150.36,6.65053026]
[1750170888587,12.38954317,150.4,150.36,6.65053026]
[1750170888787,27.76,150.39,150.36,6.65053026]
[1750170888987,7.42951099,150.38,150.34,6.65155718]
[1750170889598,7.42951099,150.37,150.34,6.65155718]
[1750170890382,4.96118197,150.38,150.34,6.65155718]
[1750170890713,7.42951099,150.37,150.34,6.65155718]
[1750170893109,4.96127843,150.38,150.34,6.65155718]
[1750170893303,7.42951099,150.37,150.34,6.65155718]
[1750170893790,12.39078942,150.38,150.34,14.08106817]
[1750170893992,12.39078942,150.38,150.32,23.28269122]
[1750170894198,12.39078942,150.38,150.34,7.42951099]
[1750170894610,12.39005344,150.38,150.34,7.42951099]
[1750170894798,7.42951099,150.37,150.33,7.42951099]
[1750170895500,7.42951099,150.34,150.29,6.65380264]
[1750170895701,7.42951099,150.34,150.3,7.42951099]
[1750170896011,7.42951099,150.34,150.31,6.6529173]
[1750170896814,12.39081575,150.35,150.31,14.08242829]
[1750170897386,4.96130476,150.35,150.33,7.42951099]
[1750170897591,27.76,150.36,150.31,23.28521056]
[1750170897912,35.18951099,150.36,150.32,7.42951099]
[1750170898212,27.76,150.36,150.33,7.42951099]
[1750170899013,27.76,150.36,150.34,7.42951099]
[1750170899200,27.76,150.36,150.33,7.42951099]
[1750170899402,7.42951099,150.37,150.33,7.42951099]
[1750170900100,7.42951099,150.37,150.34,6.65158972]
[1750170901114,7.42951099,150.35,150.29,26.0]
[1750170901315,7.42951099,150.33,150.29,7.42951099]
[1750170901704,7.42951099,150.33,150.29,14.08331363]
[1750170901891,41.36951099,150.35,150.31,7.42951099]
[1750170902098,7.42951099,150.34,150.3,7.42951099]
[1750170902295,7.42951099,150.32,150.29,6.65380264]
[1750170903393,18.64964886,150.33,150.29,6.65380264]
[1750170903595,7.42951099,150.32,150.29,6.65380264]
[1750170904925,7.42951099,150.3,150.24,18.16974251]
[1750170905122,7.42951099,150.29,150.25,6.65557404]
[1750170905328,7.42951099,150.28,150.25,6.65557404]
[1750170906111,26.0,150.32,150.27,7.42951099]
[1750170906313,27.76,150.32,150.28,7.42951099]
[1750170906502,35.18951099,150.32,150.27,7.42951099]
[1750170907311,7.42951099,150.31,150.27,7.42951099]
[1750170907514,7.42951099,150.28,150.22,16.64215448]
[1750170907724,7.42951099,150.27,150.22,24.07166547]
[1750170907930,7.42951099,150.27,150.23,7.42951099]
[1750170908117,27.76,150.29,150.21,14.08685737]
[1750170908118,7.42951099,150.26,150.21,14.08685737]
[1750170908322,7.42951099,150.26,150.22,7.42951099]
[1750170909114,7.42951099,150.26,150.21,14.08685737]
[1750170909312,7.42951099,150.24,150.21,6.65734638]
[1750170910207,7.42951099,150.24,150.17,6.65911966]
[1750170910407,7.42951099,150.23,150.18,7.42951099]
[1750170910626,7.42951099,150.23,150.19,7.42951099]
[1750170910929,18.933972,150.24,150.2,7.42951099]
[1750170911128,7.42951099,150.23,150.2,6.65741197]
[1750170911721,26.36348299,150.24,150.2,14.08692296]
[1750170912208,27.76,150.25,150.21,7.42951099]
[1750170912407,35.18951099,150.25,150.21,7.42951099]
[1750170912610,18.64964886,150.27,150.23,7.42951099]
[1750170912826,7.42951099,150.26,150.22,7.42951099]
[1750170913109,7.42951099,150.23,150.18,16.64668571]
[1750170913411,7.71383413,150.24,150.2,7.42951099]
[1750170914434,26.36348299,150.21,150.12,23.31386385]
[1750170914608,26.07915985,150.21,150.16,7.42951099]
[1750170915127,7.42951099,150.19,150.12,23.31386385]
[1750170915333,7.42951099,150.19,150.14,7.42951099]
[1750170915532,7.42951099,150.17,150.13,7.42951099]
[1750170915714,7.42951099,150.18,150.13,7.42951099]
[1750170916210,27.76,150.19,150.14,7.42951099]
[1750170916412,7.42951099,150.18,150.14,7.42951099]
[1750170916606,7.42951099,150.18,150.12,23.31386385]
[1750170916804,7.42951099,150.18,150.14,7.42951099]
[1750170917010,27.76,150.19,150.15,7.42951099]
[1750170917303,7.42951099,150.18,150.12,23.31386385]
[1750170917508,7.42951099,150.18,150.14,7.42951099]
[1750170917922,7.42951099,150.17,150.12,23.31386385]
[1750170918114,7.42951099,150.17,150.13,7.42951099]
[1750170919313,7.42951099,150.16,150.13,6.66070256]
[1750170920035,7.42951099,150.17,150.13,14.09021355]
[1750170920536,7.42951099,150.16,150.13,6.66070256]
[1750170920710,40.96618408,150.18,150.13,14.09021355]
[1750170920914,14.88702423,150.18,150.15,7.42951099]
[1750170921119,14.88702423,150.18,150.16,7.42951099]
[1750170921314,14.88702423,150.18,150.16,6.6593459]
[1750170922018,7.42951099,150.17,150.14,6.66011513]
[1750170923238,14.88702423,150.18,150.15,7.42951099]
[1750170923607,14.88702423,150.18,150.14,23.31124074]
[1750170923813,14.88702423,150.18,150.14,30.74075173]
[1750170924113,14.88702423,150.18,150.15,7.42951099]
[1750170925414,14.88702423,150.18,150.16,6.65956313]
[1750170927234,14.88702423,150.18,150.15,7.42951099]
[1750170928240,14.88702423,150.18,150.14,23.31157585]
[1750170928428,14.88702423,150.18,150.15,7.42951099]
[1750170928628,14.88702423,150.18,150.16,7.42951099]
[1750170928959,14.88702423,150.18,150.17,7.42951099]
[1750170929151,14.88702423,150.18,150.17,14.08863065]
[1750170930710,14.88702423,150.18,150.17,6.65911966]
[1750170930918,14.88702423,150.18,150.17,14.08863065]
[1750170931965,22.31653522,150.18,150.1,1.5539]
[1750170932239,0.28432314,150.16,150.08,23.32005163]
[1750170932440,0.42648471,150.16,150.1,7.42951099]
[1750170932617,14.62594472,150.17,150.14,7.42951099]